fUSD/lending_fUSD_20251204
["ID","MTS","AMOUNT","RATE_DAILY","PERIOD"]
[396226992,1764841842195,-1387.1662804,0.00016996,2]
[396226993,1764841842205,-1387.1662804,0.00016996,2]
[396226994,1764841842213,-1387.1662804,0.00016996,2]
[396226995,1764841842222,-1387.1662804,0.00016996,2]
[396226996,1764841842231,-1387.1662804,0.00016996,2]
[396226997,1764841842240,-1387.1662804,0.00016996,2]
[396226998,1764841842250,-1387.1662804,0.00016996,2]
[396226999,1764841842259,-1387.1662804,0.00016996,2]
[396227000,1764841842271,-1387.1662804,0.00016996,2]
[396227001,1764841842280,-1387.1662804,0.00016996,2]
[396227002,1764841842289,-1387.1662804,0.00016996,2]
[396227003,1764841842298,-1387.1662804,0.00016996,2]
[396227004,1764841842307,-1387.1662804,0.00016996,2]
[396227005,1764841842316,-1387.16628029,0.00016996,2]
[396227006,1764841842325,-58907.5067857,0.00016997,2]
[396227007,1764841842334,-932.7547121,0.00016997,2]
[396227008,1764841842343,-372686.053265,0.00016997,2]
[396227009,1764841842352,-3255.6317906,0.00016997,2]
[396227010,1764841842361,-500.0,0.00016999,2]
[396227011,1764841842370,-500.0,0.00016999,2]
[396227012,1764841842380,-500.0,0.00016999,2]
[396227013,1764841842390,-500.0,0.00016999,2]
[396227014,1764841842399,-367.11961321,0.00016999,2]
[396227015,1764841842409,-300.0,0.00016999,2]
[396227016,1764841842420,-300.0,0.00016999,2]
[396227017,1764841842430,-173.63300387,0.00016999,2]
[396227018,1764841842440,-249200.43694741,0.00017,2]
[396227019,1764841842451,-1737644.21279713,0.00017,2]
[396227020,1764841842708,-934.135,0.00017,2]
[396227021,1764841842719,-9127.7719315,0.00017,2]
[396227025,1764841846038,-406.42897373,0.000159,2]
[396227026,1764841846047,-462.86330064,0.00017,2]
[396227027,1764841846143,-500.0,0.00017,2]
[396227028,1764841846154,-1338.67363608,0.00017,2]
[396227029,1764841846164,-1169.3192,0.00017,2]
[396227030,1764841846175,-2811.28980391,0.00017,2]
[396227050,1764842381149,714.66,0.00013699,2]
[396227051,1764842610962,3315.45841616,0.000149,2]
[396227546,1764843032161,-1821.19027997,0.000141,2]
[396227547,1764843032215,-1383.80972003,0.000141,2]
[396227548,1764843032224,-5524.0,0.000145,3]
[396227549,1764843032235,-1200.0,0.00014599,2]
[396227550,1764843032244,-5524.0,0.000148,5]
[396227551,1764843032254,-300.0,0.00014899,2]
[396227552,1764843032263,-250.0,0.00015887,2]
[396227553,1764843032276,-150.0,0.0001595,2]
[396227554,1764843032286,-1379.0,0.00016059,2]
[396227555,1764843032295,-221.3,0.00016072,2]
[396227556,1764843032305,-308.33,0.00016133,2]
[396227557,1764843032314,-1003.5506884,0.00016265,2]
[396227558,1764843032324,-1205.8055,0.00016266,2]
[396227559,1764843032333,-3556.28479497,0.00016266,2]
[396227560,1764843032345,-1932.135623,0.00016266,2]
[396227561,1764843032361,-500.0,0.00016266,2]
[396227562,1764843032394,-290.50101192,0.00016266,2]
[396227570,1764843038234,-58716.57423328,0.00016266,2]
[396227571,1764843038246,-55056.76162075,0.00016266,2]
[396227613,1764843040143,-13365.42815252,0.00016266,2]
[396227623,1764843040285,-8102.14124179,0.00016266,2]
[396227624,1764843040300,-7596.77465856,0.00016266,2]
[396227625,1764843040337,-61608.85866321,0.00016266,2]
[396227626,1764843040348,-5645.249786,0.00016272,2]
[396227627,1764843040358,-420.0,0.00016308,2]
[396227628,1764843040369,-309.35627856,0.00016338,2]
[396227629,1764843040379,-307.446999,0.00016356,2]
[396227630,1764843040389,-151.0,0.00016356,2]
[396227631,1764843040399,-151.0,0.00016356,2]
[396227632,1764843040409,-151.0,0.00016356,2]
[396227633,1764843040421,-151.0,0.00016356,2]
[396227634,1764843040431,-151.0,0.00016356,2]
[396227635,1764843040441,-151.0,0.00016356,2]
[396227636,1764843040451,-151.0,0.00016356,2]
[396227637,1764843040461,-1000.0,0.00016364,2]
[396227638,1764843040473,-999.99,0.00016365,2]
[396227639,1764843040483,-1458.41,0.00016365,2]
[396227640,1764843040493,-507.69829592,0.00016365,2]
[396227641,1764843040503,-509.18007663,0.00016365,2]
[396227642,1764843040514,-3751.00742922,0.00016365,2]
[396227643,1764843040523,-1111.865,0.00016365,2]
[396227644,1764843040532,-500.0,0.00016365,2]
[396227645,1764843040542,-510.22691486,0.00016365,2]
[396227646,1764843040551,-500.0,0.00016365,2]
[396227648,1764843040559,-500.0,0.00016365,2]
[396227650,1764843040569,-500.0,0.00016365,2]
[396227651,1764843040578,-436.48,0.00016365,2]
[396227652,1764843040587,-1629.69,0.00016365,2]
[396227653,1764843040596,-150.99,0.00016365,2]
[396227654,1764843040605,-1638.44,0.00016365,2]
[396227655,1764843040614,-9999.99,0.00016365,2]
[396227656,1764843040623,-507.17450848,0.00016365,2]
[396227657,1764843040632,-500.0,0.00016365,2]
[396227658,1764843040641,-500.0,0.00016365,2]
[396227659,1764843040651,-516.18265431,0.00016365,2]
[396227660,1764843040660,-500.0,0.00016365,2]
[396227661,1764843040668,-506.24410093,0.00016365,2]
[396227662,1764843040678,-611.46471332,0.00016365,2]
[396227663,1764843040687,-166.68,0.00016371,2]
[396227665,1764843040697,-1181.39,0.00016438,2]
[396227666,1764843040706,-500.0,0.00016566,2]
[396227667,1764843040715,-500.0,0.00016566,2]
[396227668,1764843040725,-410.37691776,0.00016566,2]
[396227669,1764843040735,-1181.39,0.00016712,2]
[396227670,1764843040745,-1370.0,0.00016812,2]
[396227671,1764843040755,-1402.80529206,0.0001689,2]
[396227672,1764843040764,-500.0,0.00016899,2]
[396227673,1764843040773,-10000.0,0.000169,2]
[396227674,1764843040783,-210.94522326,0.000169,2]
[396227675,1764843040792,-616.4929053,0.000169,2]
[396227676,1764843040803,-181.41208312,0.000169,2]
[396227677,1764843040812,-885.16939627,0.00016919,2]
[396227678,1764843040822,-9999.99,0.00016922,2]
[396227679,1764843040831,-19999.99,0.00016922,2]
[396227680,1764843040842,-886.15932184,0.0001697,2]
[396227681,1764843040853,-1000.0,0.0001697,2]
[396227682,1764843040863,-1000.0,0.0001697,2]
[396227683,1764843040874,-1000.0,0.0001697,2]
[396227684,1764843040884,-598.94895177,0.00016973,2]
[396227685,1764843040895,-500.0,0.00016973,2]
[396227686,1764843040906,-1181.39,0.00016986,2]
[396227687,1764843040917,-518.5,0.00016986,2]
[396227688,1764843040927,-1065.0,0.00016986,2]
[396227689,1764843040937,-150.0,0.0001699,2]
[396227690,1764843040947,-500.0,0.0001699,2]
[396227691,1764843040957,-500.0,0.0001699,2]
[396227692,1764843040966,-150.0,0.0001699,2]
[396227693,1764843040976,-152.33281575,0.0001699,2]
[396227694,1764843040988,-150.0,0.0001699,2]
[396227695,1764843041008,-500.0,0.0001699,2]
[396227696,1764843041019,-500.0,0.0001699,2]
[396227697,1764843041030,-150.0,0.0001699,2]
[396227698,1764843041040,-150.0,0.0001699,2]
[396227699,1764843041051,-282.96061831,0.0001699,2]
[396227700,1764843041061,-150.0,0.0001699,2]
[396227701,1764843041072,-150.0,0.0001699,2]
[396227702,1764843041083,-150.86420125,0.0001699,2]
[396227703,1764843041093,-150.0,0.0001699,2]
[396227704,1764843041103,-500.0,0.0001699,2]
[396227705,1764843041112,-500.0,0.0001699,2]
[396227706,1764843041364,-150.0,0.0001699,2]
[396227707,1764843041376,-500.0,0.0001699,2]
[396227708,1764843041387,-150.0,0.0001699,2]
[396227709,1764843041397,-500.0,0.0001699,2]
[396227710,1764843041407,-500.0,0.0001699,2]
[396227711,1764843041417,-150.0,0.0001699,2]
[396227712,1764843041427,-202.19752299,0.0001699,2]
[396227713,1764843041436,-150.0,0.0001699,2]
[396227714,1764843041447,-500.0,0.0001699,2]
[396227715,1764843041457,-150.0,0.0001699,2]
[396227716,1764843041467,-207.9515902,0.0001699,2]
[396227717,1764843041477,-500.0,0.0001699,2]
[396227718,1764843041490,-150.0,0.0001699,2]
[396227719,1764843041500,-199.73901061,0.0001699,2]
[396227720,1764843041510,-500.0,0.00016998,2]
[396227721,1764843041519,-1434.99960041,0.00016998,2]
[396227722,1764843041529,-1434.99960041,0.00016998,2]
[396227723,1764843041539,-500.0,0.00016998,2]
[396227724,1764843041548,-1434.99960041,0.00016998,2]
[396227725,1764843041558,-1434.99960041,0.00016998,2]
[396227726,1764843041569,-500.0,0.00016998,2]
[396227727,1764843041579,-1434.99960041,0.00016998,2]
[396227728,1764843041588,-1434.99960041,0.00016998,2]
[396227729,1764843041598,-417.08586028,0.00016998,2]
[396227730,1764843041608,-1434.99960041,0.00016998,2]
[396227731,1764843041618,-1434.99960041,0.00016998,2]
[396227732,1764843041629,-1434.99960041,0.00016998,2]
[396227733,1764843041638,-1434.99960041,0.00016998,2]
[396227734,1764843041647,-1434.99960041,0.00016998,2]
[396227735,1764843041657,-1434.99960041,0.00016998,2]
[396227736,1764843041667,-1434.99960041,0.00016998,2]
[396227737,1764843041677,-1434.99960041,0.00016998,2]
[396227738,1764843041690,-1434.99960041,0.00016998,2]
[396227739,1764843041700,-1434.99960041,0.00016998,2]
[396227740,1764843041709,-1434.99960041,0.00016998,2]
[396227741,1764843041719,-1434.99960041,0.00016998,2]
[396227742,1764843041729,-1434.99960041,0.00016998,2]
[396227743,1764843041739,-1434.99960041,0.00016998,2]
[396227744,1764843041748,-1434.99960041,0.00016998,2]
[396227745,1764843041758,-1434.99960041,0.00016998,2]
[396227746,1764843041770,-1434.99960041,0.00016998,2]
[396227747,1764843041782,-1434.99960041,0.00016998,2]
[396227748,1764843041792,-1434.99960041,0.00016998,2]
[396227749,1764843041802,-1434.99960041,0.00016998,2]
[396227750,1764843041813,-1434.99960041,0.00016998,2]
[396227751,1764843041823,-1434.99960041,0.00016998,2]
[396227752,1764843041833,-1434.99960041,0.00016998,2]
[396227753,1764843041843,-1434.99960041,0.00016998,2]
[396227754,1764843041853,-1434.99960041,0.00016998,2]
[396227755,1764843041864,-1434.99960041,0.00016998,2]
[396227756,1764843041874,-1434.99960041,0.00016998,2]
[396227757,1764843041888,-1434.99960041,0.00016998,2]
[396227758,1764843041898,-1434.99960041,0.00016998,2]
[396227759,1764843041908,-1434.99960041,0.00016998,2]
[396227760,1764843041919,-1434.99960041,0.00016998,2]
[396227761,1764843041934,-1434.99960041,0.00016998,2]
[396227762,1764843041947,-1434.99960041,0.00016998,2]
[396227763,1764843041957,-1434.99960041,0.00016998,2]
[396227764,1764843041967,-1434.99960041,0.00016998,2]
[396227765,1764843041993,-1434.99960041,0.00016998,2]
[396227766,1764843042003,-1434.99960041,0.00016998,2]
[396227767,1764843042014,-1434.99960041,0.00016998,2]
[396227768,1764843042025,-1434.99960041,0.00016998,2]
[396227769,1764843042035,-1434.99960041,0.00016998,2]
[396227770,1764843042045,-1434.99960041,0.00016998,2]
[396227771,1764843042055,-1434.99960041,0.00016998,2]
[396227772,1764843042064,-1434.99960041,0.00016998,2]
[396227773,1764843042074,-1434.99960041,0.00016998,2]
[396227774,1764843042086,-1434.99960041,0.00016998,2]
[396227775,1764843042096,-1434.99960041,0.00016998,2]
[396227776,1764843042106,-1434.99960041,0.00016998,2]
[396227777,1764843042116,-339058.6209237,0.00016999,2]
[396227778,1764843042126,-3290.3840162,0.00016999,2]
[396227779,1764843042135,-500.0,0.00016999,2]
[396227780,1764843042145,-500.0,0.00016999,2]
[396227781,1764843042154,-367.11961321,0.00016999,2]
[396227782,1764843042164,-12629.9441398,0.00016999,2]
[396227783,1764843042175,-1414205.99935119,0.00017,2]
[396227784,1764843042186,-2000.0,0.00017,2]
[396227785,1764843042202,-2000.0,0.00017,2]
[396227786,1764843042212,-200.0,0.00017,2]
[396227787,1764843042223,-152.857964,0.00017,2]
[396227788,1764843042235,-200.0,0.00017,2]
[396227789,1764843042246,-250.0,0.00017,2]
[396227790,1764843042256,-200.0,0.00017,2]
[396227791,1764843042265,-151.0,0.00017,2]
[396227792,1764843042275,-151.0,0.00017,2]
[396227793,1764843042288,-761.023688,0.00017,2]
[396227794,1764843042298,-761.023688,0.00017,2]
[396227795,1764843042307,-761.023688,0.00017,2]
[396227796,1764843042317,-761.023688,0.00017,2]
[396227797,1764843042326,-2651.0,0.00017032,2]
[396227798,1764843042335,-537.6845,0.00017041,2]
[396227799,1764843042346,-2346.0,0.00017086,2]
[396227800,1764843042356,-557.5788265,0.00017096,2]
[396227801,1764843042365,-2346.0,0.00017111,2]
[396227802,1764843042375,-644.41412914,0.00017125,2]
[396227803,1764843042386,-150.0,0.00017127,2]
[396227804,1764843042397,-500.0,0.00017127,2]
[396227805,1764843042407,-500.0,0.00017127,2]
[396227806,1764843042418,-150.0,0.00017127,2]
[396227807,1764843042428,-150.0,0.00017127,2]
[396227808,1764843042438,-500.0,0.00017127,2]
[396227809,1764843042448,-500.0,0.00017127,2]
[396227810,1764843042458,-203.85379449,0.00017127,2]
[396227811,1764843042468,-150.0,0.00017127,2]
[396227812,1764843042480,-150.0,0.00017127,2]
[396227813,1764843042490,-150.0,0.00017127,2]
[396227814,1764843042499,-150.0,0.00017127,2]
[396227815,1764843042509,-541.50339191,0.00017127,2]
[396227816,1764843042519,-500.0,0.00017127,2]
[396227817,1764843042529,-150.0,0.00017127,2]
[396227818,1764843042539,-500.0,0.00017127,2]
[396227819,1764843042551,-500.0,0.00017127,2]
[396227820,1764843042561,-360.30255927,0.00017127,2]
[396227821,1764843042571,-150.0,0.00017127,2]
[396227822,1764843042582,-500.0,0.00017127,2]
[396227823,1764843042593,-500.0,0.00017127,2]
[396227824,1764843042604,-150.0,0.00017127,2]
[396227825,1764843042614,-150.34,0.0001713,2]
[396227826,1764843042623,-441.38890768,0.00017151,2]
[396227827,1764843042634,-200.0,0.0001717,2]
[396227828,1764843042644,-200.0,0.0001717,2]
[396227829,1764843042655,-200.0,0.0001717,2]
[396227830,1764843042665,-2346.0,0.00017202,2]
[396227831,1764843042675,-2346.0,0.00017229,2]
[396227832,1764843042686,-2346.0,0.00017239,2]
[396227833,1764843042695,-189.51838586,0.00017249,2]
[396227834,1764843042705,-1181.39,0.0001726,2]
[396227835,1764843042714,-171.06590032,0.00017264,2]
[396227836,1764843042724,-460.60034226,0.00017264,2]
[396227837,1764843042733,-500.0,0.00017264,2]
[396227838,1764843042743,-150.0,0.00017264,2]
[396227839,1764843042753,-150.0,0.00017264,2]
[396227840,1764843042763,-320.52785935,0.00017264,2]
[396227841,1764843042772,-500.0,0.00017264,2]
[396227842,1764843042781,-150.0,0.00017264,2]
[396227843,1764843042791,-150.0,0.00017264,2]
[396227844,1764843042802,-500.0,0.00017264,2]
[396227845,1764843042811,-284.66758236,0.00017264,2]
[396227846,1764843042821,-500.0,0.00017264,2]
[396227847,1764843042832,-500.0,0.00017264,2]
[396227848,1764843042841,-150.0,0.00017264,2]
[396227849,1764843042851,-500.0,0.00017264,2]
[396227850,1764843042862,-578.94802614,0.00017264,2]
[396227851,1764843042872,-150.0,0.00017264,2]
[396227852,1764843042883,-2651.0,0.00017286,2]
[396227853,1764843042895,-200.0,0.00017342,2]
[396227854,1764843042905,-200.0,0.00017342,2]
[396227855,1764843042915,-2346.0,0.00017352,2]
[396227856,1764843042925,-2346.0,0.00017379,2]
[396227857,1764843042936,-166.66,0.00017379,2]
[396227858,1764843042945,-500.0,0.00017401,2]
[396227859,1764843042955,-150.0,0.00017401,2]
[396227860,1764843042966,-219.99695734,0.00017401,2]
[396227861,1764843042975,-500.0,0.00017401,2]
[396227862,1764843042985,-254.96262586,0.00017401,2]
[396227863,1764843042994,-265.01712022,0.00017401,2]
[396227864,1764843043005,-500.0,0.00017401,2]
[396227865,1764843043015,-500.0,0.00017401,2]
[396227866,1764843043024,-500.0,0.00017401,2]
[396227867,1764843043034,-150.0,0.00017401,2]
[396227868,1764843043043,-500.0,0.00017401,2]
[396227869,1764843043054,-201.44591919,0.00017401,2]
[396227870,1764843043063,-2346.0,0.00017489,2]
[396227871,1764843043073,-2346.0,0.00017513,2]
[396227872,1764843043083,-200.0,0.00017515,2]
[396227873,1764843043093,-200.0,0.00017515,2]
[396227874,1764843043102,-2346.0,0.00017523,2]
[396227875,1764843043112,-1181.39,0.00017534,2]
[396227876,1764843043121,-500.0,0.00017538,2]
[396227877,1764843043131,-150.0,0.00017538,2]
[396227878,1764843043140,-500.0,0.00017538,2]
[396227879,1764843043150,-500.0,0.00017538,2]
[396227880,1764843043159,-297.80864712,0.00017538,2]
[396227881,1764843043168,-366.23798276,0.00017538,2]
[396227882,1764843043178,-195.49167691,0.00017538,2]
[396227883,1764843043188,-497.72446817,0.00017538,2]
[396227884,1764843043199,-1370.0,0.00017554,2]
[396227885,1764843043209,-2651.0,0.00017607,2]
[396227886,1764843043219,-500.0,0.00017675,2]
[396227887,1764843043228,-173.56700146,0.00017675,2]
[396227888,1764843043239,-510.31429567,0.00017675,2]
[396227889,1764843043248,-500.0,0.00017675,2]
[396227890,1764843043258,-200.0,0.0001769,2]
[396227891,1764843043267,-200.0,0.0001769,2]
[396227892,1764843043280,-2346.0,0.00017702,2]
[396227893,1764843043290,-300.0,0.00017706,2]
[396227894,1764843043299,-151.0,0.00017706,2]
[396227895,1764843043308,-574.12855637,0.00017706,2]
[396227896,1764843043318,-2200.0,0.00017706,2]
[396227897,1764843043328,-151.0,0.00017706,2]
[396227898,1764843043338,-1773.27178046,0.00017706,2]
[396227899,1764843043347,-500.0,0.00017706,2]
[396227900,1764843043357,-1000.0,0.00017706,2]
[396227901,1764843043367,-500.0,0.00017706,2]
[396227902,1764843043376,-1000.0,0.00017706,2]
[396227903,1764843043387,-500.0,0.00017706,2]
[396227904,1764843043396,-1000.0,0.00017706,2]
[396227905,1764843043406,-500.0,0.00017706,2]
[396227906,1764843043416,-500.0,0.00017706,2]
[396227907,1764843043426,-500.0,0.00017706,2]
[396227908,1764843043435,-1000.0,0.00017706,2]
[396227909,1764843043445,-500.0,0.00017706,2]
[396227910,1764843043454,-500.0,0.00017706,2]
[396227911,1764843043464,-1000.0,0.00017706,2]
[396227912,1764843043474,-500.0,0.00017706,2]
[396227913,1764843043484,-1000.0,0.00017706,2]
[396227914,1764843043494,-500.0,0.00017706,2]
[396227915,1764843043503,-500.0,0.00017706,2]
[396227916,1764843043512,-1000.0,0.00017706,2]
[396227917,1764843043522,-500.0,0.00017706,2]
[396227918,1764843043531,-500.0,0.00017706,2]
[396227919,1764843043541,-335.66906055,0.00017706,2]
[396227920,1764843043550,-1000.0,0.00017706,2]
[396227921,1764843043560,-500.0,0.00017706,2]
[396227922,1764843043570,-500.0,0.00017706,2]
[396227923,1764843043579,-1000.0,0.00017706,2]
[396227924,1764843043588,-500.0,0.00017706,2]
[396227925,1764843043597,-500.0,0.00017706,2]
[396227926,1764843043606,-1000.0,0.00017706,2]
[396227927,1764843043615,-500.0,0.00017706,2]
[396227928,1764843043624,-2000.0,0.00017706,2]
[396227929,1764843043633,-500.0,0.00017706,2]
[396227930,1764843043643,-1000.0,0.00017706,2]
[396227931,1764843043652,-2000.0,0.00017706,2]
[396227932,1764843043662,-500.0,0.00017706,2]
[396227933,1764843043672,-2000.0,0.00017706,2]
[396227934,1764843043682,-500.0,0.00017706,2]
[396227935,1764843043692,-2000.0,0.00017706,2]
[396227936,1764843043702,-500.0,0.00017706,2]
[396227937,1764843043712,-628.35238982,0.00017706,2]
[396227938,1764843043721,-2000.0,0.00017706,2]
[396227939,1764843043730,-2000.0,0.00017706,2]
[396227940,1764843043740,-2000.0,0.00017706,2]
[396227941,1764843043749,-151.0,0.00017706,2]
[396227942,1764843043759,-2000.0,0.00017706,2]
[396227943,1764843043768,-2000.0,0.00017706,2]
[396227944,1764843043777,-2000.0,0.00017706,2]
[396227945,1764843043787,-311.1,0.00017706,2]
[396227946,1764843043796,-277.35679052,0.00017706,2]
[396227947,1764843043806,-2000.0,0.00017706,2]
[396227948,1764843043816,-500.0,0.00017706,2]
[396227950,1764843043825,-500.0,0.00017706,2]
[396227951,1764843043835,-500.0,0.00017706,2]
[396227953,1764843043845,-500.0,0.00017706,2]
[396227954,1764843043854,-500.0,0.00017706,2]
[396227955,1764843043863,-500.0,0.00017706,2]
[396227956,1764843043873,-383.26785685,0.00017706,2]
[396227957,1764843043883,-250.0,0.00017706,2]
[396227958,1764843043892,-250.0,0.00017706,2]
[396227959,1764843043901,-250.0,0.00017706,2]
[396227960,1764843043911,-503.8835565,0.00017706,2]
[396227961,1764843043920,-250.0,0.00017706,2]
[396227962,1764843043930,-250.0,0.00017706,2]
[396227963,1764843043940,-599.60298507,0.00017706,2]
[396227964,1764843043949,-250.0,0.00017706,2]
[396227965,1764843043959,-250.0,0.00017706,2]
[396227966,1764843043969,-250.0,0.00017706,2]
[396227967,1764843043978,-250.0,0.00017706,2]
[396227968,1764843043988,-250.0,0.00017706,2]
[396227969,1764843043997,-250.0,0.00017706,2]
[396227970,1764843044006,-151.0,0.00017706,2]
[396227971,1764843044016,-764.63,0.00017713,2]
[396227972,1764843044025,-2346.0,0.00017727,2]
[396227973,1764843044035,-1000.0,0.00017743,2]
[396227974,1764843044045,-150.0,0.00017808,2]
[396227975,1764843044054,-1181.39,0.00017808,2]
[396227976,1764843044063,-523.85614202,0.00017812,2]
[396227977,1764843044074,-500.0,0.00017812,2]
[396227978,1764843044084,-151.0,0.00017832,2]
[396227979,1764843044093,-1251.0,0.00017832,2]
[396227980,1764843044102,-1251.0,0.00017832,2]
[396227981,1764843044111,-1251.0,0.00017832,2]
[396227982,1764843044120,-1251.0,0.00017832,2]
[396227983,1764843044130,-153.0,0.00017832,2]
[396227984,1764843044140,-202.21375982,0.00017832,2]
[396227985,1764843044149,-151.0,0.00017832,2]
[396227986,1764843044158,-1370.0,0.0001784,2]
[396227987,1764843044169,-214.0,0.0001785,2]
[396227988,1764843044178,-2346.0,0.00017865,2]
[396227989,1764843044189,-11409.0,0.00017867,2]
[396227990,1764843044201,-2346.0,0.00017879,2]
[396227991,1764843044211,-5645.24978593,0.00017897,2]
[396227992,1764843044221,-166.66,0.00017918,2]
[396227993,1764843044231,-150.0,0.00017945,2]
[396227994,1764843044241,-500.0,0.00017949,2]
[396227995,1764843044250,-300.0,0.00017999,2]
[396227996,1764843044259,-68957.98581717,0.00018,2]
[396227997,1764843044269,-887.27272926,0.00018,2]
[396227998,1764843044279,-1183.49453852,0.00018,2]
[396227999,1764843044288,-366.26941,0.00018,2]
[396228000,1764843044300,-2346.0,0.0001805,2]
[396228001,1764843044310,-2651.0,0.00018073,2]
[396228002,1764843044320,-2346.0,0.00018073,2]
[396228003,1764843044330,-150.0,0.00018082,2]
[396228004,1764843044339,-1181.39,0.00018082,2]
[396228005,1764843044350,-1000.0,0.00018082,2]
[396228006,1764843044359,-500.0,0.00018086,2]
[396228007,1764843044368,-1769.01601649,0.000181,2]
[396228008,1764843044378,-2651.0,0.00018119,2]
[396228009,1764843044387,-972.0,0.000182,2]
[396228010,1764843044397,-305.0,0.000182,2]
[396228011,1764843044407,-150.0,0.00018219,2]
[396228012,1764843044416,-500.0,0.00018223,2]
[396228013,1764843044426,-1370.0,0.00018243,2]
[396228014,1764843044436,-151.0,0.00018254,2]
[396228015,1764843044445,-2200.0,0.00018254,2]
[396228016,1764843044455,-595.37131296,0.00018254,2]
[396228017,1764843044464,-151.0,0.00018254,2]
[396228018,1764843044474,-150.34,0.00018272,2]
[396228019,1764843044484,-621.64,0.00018314,2]
[396228020,1764843044492,-300.0,0.00018355,2]
[396228021,1764843044502,-150.0,0.00018356,2]
[396228022,1764843044512,-1181.39,0.00018356,2]
[396228023,1764843044522,-87966.54,0.00018356,2]
[396228024,1764843044531,-500.0,0.0001836,2]
[396228025,1764843044540,-150.17113883,0.00018373,2]
[396228026,1764843044550,-166.66,0.00018456,2]
[396228027,1764843044559,-229.59889414,0.00018493,2]
[396228028,1764843044569,-500.0,0.00018497,2]
[396228029,1764843044579,-309.35627854,0.00018561,2]
[396228030,1764843044588,-15969.67,0.00018571,2]
[396228031,1764843044599,-150.00000001,0.00018616,2]
[396228032,1764843044608,-150.0,0.00018616,2]
[396228033,1764843044618,-150.16098093,0.00018616,2]
[396228034,1764843044627,-150.0,0.00018616,2]
[396228035,1764843044637,-151.03556931,0.00018616,2]
[396228036,1764843044647,-1181.39,0.0001863,2]
[396228037,1764843044658,-500.0,0.00018634,2]
[396228038,1764843044667,-1000.0,0.0001876,2]
[396228039,1764843044677,-500.0,0.00018771,2]
[396228040,1764843044687,-909.0,0.00018789,2]
[396228041,1764843044696,-1194.0,0.00018789,2]
[396228042,1764843044706,-199.539,0.00018789,2]
[396228043,1764843044715,-318.211,0.00018789,2]
[396228044,1764843044725,-562.0,0.00018789,2]
[396228045,1764843044735,-4706.0,0.00018789,2]
[396228046,1764843044744,-207.0,0.000188,2]
[396228047,1764843044754,-150.8,0.000188,2]
[396228048,1764843044764,-150.8,0.000188,2]
[396228049,1764843044774,-150.8,0.000188,2]
[396228050,1764843044946,-150.8,0.000188,2]
[396228051,1764843044955,-150.8,0.000188,2]
[396228052,1764843044965,-150.8,0.000188,2]
[396228053,1764843044974,-150.8,0.000188,2]
[396228054,1764843044983,-150.8,0.000188,2]
[396228055,1764843044993,-150.8,0.000188,2]
[396228056,1764843045004,-150.8,0.000188,2]
[396228057,1764843045014,-150.8,0.000188,2]
[396228058,1764843045023,-150.8,0.000188,2]
[396228059,1764843045033,-150.8,0.000188,2]
[396228060,1764843045043,-151.0,0.00018802,2]
[396228061,1764843045052,-617.40005154,0.00018802,2]
[396228062,1764843045063,-2200.0,0.00018802,2]
[396228063,1764843045073,-151.0,0.00018802,2]
[396228064,1764843045083,-1181.39,0.00018904,2]
[396228065,1764843045092,-548.0,0.00018908,2]
[396228066,1764843045104,-157.75281607,0.00018969,2]
[396228067,1764843045115,-166.66,0.00018994,2]
[396228068,1764843045125,-150.0,0.00018999,2]
[396228069,1764843045136,-152.0,0.00018999,2]